[Event "WSTCC-65 2024"]
[Site "Krakow"]
[Date "2024.07.02"]
[Round "1.3"]
[White "Mestel, A Jonathan"]
[Black "Sonderstrup, Bjarne"]
[Result "1-0"]
[ECO "A25"]
[WhiteElo "2470"]
[BlackElo "2011"]
[Annotator "TA"]
[PlyCount "55"]
[EventDate "2024.07.01"]
[EventType "team-tourn"]
[EventCountry "POL"]
[SourceTitle "playchess.com"]
[Source "ChessBase"]
[SourceQuality "1"]
[TimeControl "40/5400+30:1800+30"]

{[%evp 13,55,6,18,14,14,2,1,16,45,52,68,66,67,62,62,71,68,66,62,66,82,83,160,170,152,120,127,106,248,253,241,228,209,213,253,261,265,265,357,303,318,318,406,403]} 1. c4 {[%emt 0:00:16]} e5 {[%emt 0:00:27]} 2. Nc3 {[%emt 0:00:13]} Nc6 {[%emt 0:00:35]} 3. g3 {[%emt 0:01:22]} g6 {[%emt 0:00:15]} 4. Bg2 {[%emt 0:00:42]} Bg7 {[%emt 0:00:08]} 5. Rb1 {[%emt 0:01:01]} a5 {[%emt 0:01:18]} 6. e3 {[%emt 0:01:32]} d6 {[%emt 0:03:15]} 7. Nge2 {[%emt 0:03:04]} Nge7 {[%emt 0:04:23]} 8. a3 {[%emt 0:04:03][%cal Ba2a3,Ba3b4,Bb4b5,Bb5b6][%mdl 32]} O-O {[%emt 0:06:43]} 9. b4 {[%emt 0:07:47]} axb4 {[%emt 0:00:19]} 10. axb4 {[%emt 0:00:06] The position is equal.} Nf5 {[%emt 0:06:16]} 11. O-O {[%emt 0:05:38]} Rb8 {[%emt 0:17:24]} 12. b5 {[%emt 0:11:37]} Nce7 {[%emt 0:02:25]} 13. Ba3 {[%emt 0:00:15]} Re8 {[%emt 0:04:35]} 14. Qb3 {[%emt 0:03:18]} Be6 {[%emt 0:05:56]} 15. Rfc1 {[%emt 0:06:38]} Nc8 {[%emt 0:06:03]} 16. Nd5 {[%emt 0:01:59]} Nfe7 {[%emt 0:02:59]} 17. b6 {[%emt 0:10:18]} c6 {[%emt 0:02:56]} (17... cxb6 $142 18. Nxb6 Nc6) 18. Nc7 $16 {[%emt 0:01:10]} Rf8 {[%emt 0:02:03]} 19. d4 {[%emt 0:07:13] White is much more active.} Bg4 {[%emt 0:06:08] [#]} 20. f3 $1 {[%emt 0:00:23]} Bf5 {[%emt 0:01:40] [#] A mistake that costs the game.} (20... Bd7 $16 {is a better defense.}) 21. e4 $1 $18 {[%emt 0:01:00]} exd4 {[%emt 0:07:44]} 22. exf5 {[%emt 0:02:35]} Nxf5 {[%emt 0:00:09][%cal Oc8b6]} 23. c5 {[%emt 0:01:55]} Qe7 {[%emt 0:03:04]} 24. Qd3 {[%emt 0:01:46]} Rd8 {[%emt 0:01:24]} 25. Bh3 {[%emt 0:03:14]} dxc5 {[%emt 0:03:52]} 26. Bxc5 {[%emt 0:05:13]} Qf6 {[%emt 0:01:53]} 27. Bxf5 {[%emt 0:03:13]} gxf5 {[%emt 0:00:23]} 28. Rd1 {[%emt 0:02:37] Weighted Error Value: White=0.07 (flawless) /Black=0.29 (precise) .  Mistake:       	---       	Black=2      Inaccurate:     	---       	Black=2      OK:         	White=9     	Black=4      Best:        	White=1     	---        Strong:       	White=2     	---} 1-0

[Event "WSTCC-65 2024"]
[Site "Krakow"]
[Date "2024.07.02"]
[Round "1.3"]
[White "Cocozza, Mario"]
[Black "Karnaukh, Anatolij"]
[Result "1/2-1/2"]
[ECO "B07"]
[WhiteElo "2206"]
[BlackElo "1970"]
[Annotator "RC"]
[PlyCount "49"]
[EventDate "2024.07.01"]
[EventType "team-tourn"]
[EventCountry "POL"]
[SourceTitle "playchess.com"]
[Source "ChessBase"]
[SourceQuality "1"]
[TimeControl "40/5400+30:1800+30"]

1. e4 {[%emt 0:00:06]} d6 {[%emt 0:00:11]} 2. d4 {[%emt 0:00:10]} Nf6 {[%emt 0:00:06]} 3. Nc3 {[%emt 0:00:08]} c6 {[%emt 0:01:31]} 4. Nf3 {[%emt 0:00:34]} Qa5 {[%emt 0:01:28]} 5. Bd2 {[%emt 0:11:53]} e5 {[%emt 0:02:31]} 6. Be2 {[%emt 0:11:26]} Bg4 {[%emt 0:05:35]} 7. dxe5 {[%emt 0:07:46]} dxe5 {[%emt 0:00:30]} 8. h3 {[%emt 0:00:18]} Bh5 {[%emt 0:12:03]} 9. Nh4 {[%emt 0:05:28]} Bxe2 {[%emt 0:01:09]} 10. Qxe2 {[%emt 0:00:10]} Qa6 {[%emt 0:02:32]} 11. Qf3 {[%emt 0:03:54]} Nbd7 {[%emt 0:01:42]} 12. Nf5 {[%emt 0:08:43]} h6 {[%emt 0:05:55]} 13. g4 {[%emt 0:06:16]} g6 {[%emt 0:11:49]} 14. Ne3 {[%emt 0:04:51]} Be7 {[%emt 0:06:44]} 15. h4 {[%emt 0:01:16]} O-O-O {[%emt 0:13:33]} 16. O-O-O {[%emt 0:03:17]} Rhf8 {[%emt 0:14:29]} 17. Kb1 {[%emt 0:08:02]} h5 {[%emt 0:00:37]} 18. Bc1 {[%emt 0:13:55]} Bb4 {[%emt 0:04:25]} 19. Rd3 {[%emt 0:05:23]} Be7 {[%emt 0:07:55]} 20. Rhd1 {[%emt 0:01:08]} hxg4 {[%emt 0:02:37]} 21. Nxg4 {[%emt 0:00:15]} Qc4 {[%emt 0:00:13]} 22. Bh6 {[%emt 0:01:00]} Rfe8 {[%emt 0:00:23]} 23. Bg5 {[%emt 0:01:31]} Qe6 {[%emt 0:00:26]} 24. Nxf6 {[%emt 0:00:32]} Nxf6 {[%emt 0:00:19]} 25. Bxf6 1/2-1/2

[Event "WSTCC-65 2024"]
[Site "Krakow"]
[Date "2024.07.02"]
[Round "1.3"]
[White "Van Herck, Marcel"]
[Black "Hansch, Klaus-Michael"]
[Result "1-0"]
[ECO "B01"]
[WhiteElo "1942"]
[BlackElo "1898"]
[Annotator "NA RC"]
[PlyCount "89"]
[EventDate "2024.07.01"]
[EventType "team-tourn"]
[EventCountry "POL"]
[SourceTitle "playchess.com"]
[Source "ChessBase"]
[SourceQuality "1"]
[TimeControl "40/5400+30:1800+30"]

1. e4 {[%emt 0:00:09]} d5 {[%emt 0:00:27]} 2. exd5 {[%emt 0:00:09]} Nf6 {[%emt 0:00:10]} 3. d4 {[%emt 0:00:29]} Nxd5 {[%emt 0:00:16]} 4. c4 {[%emt 0:01:31]} Nb6 {[%emt 0:00:25]} 5. Nf3 {[%emt 0:02:14]} Bg4 {[%emt 0:01:54]} 6. c5 {[%emt 0:02:08]} Bxf3 {[%emt 0:04:35]} 7. Qxf3 {[%emt 0:00:42]} Nd5 {[%emt 0:00:34]} 8. Bc4 {[%emt 0:04:53]} e6 {[%emt 0:03:03]} 9. O-O {[%emt 0:10:04]} c6 {[%emt 0:03:52]} 10. Nc3 {[%emt 0:03:17]} Nxc3 {[%emt 0:04:10]} 11. bxc3 {[%emt 0:02:23]} Be7 {[%emt 0:00:36]} 12. Rb1 {[%emt 0:01:35]} Qc8 {[%emt 0:07:30]} 13. Qg3 {[%emt 0:06:37]} O-O {[%emt 0:02:57]} 14. Bh6 {[%emt 0:00:45]} Bf6 {[%emt 0:00:44]} 15. Bf4 {[%emt 0:00:21]} Nd7 {[%emt 0:02:37]} 16. Bd6 {[%emt 0:00:31]} Re8 {[%emt 0:00:42]} 17. f4 {[%emt 0:02:45]} Be7 {[%emt 0:05:19]} 18. f5 {[%emt 0:07:30]} Bf6 {[%emt 0:18:27]} 19. fxe6 {[%emt 0:00:30]} fxe6 {[%emt 0:00:14]} 20. Rbe1 {[%emt 0:00:52]} Qd8 {[%emt 0:04:04]} 21. Bxe6+ {[%emt 0:08:21]} Kh8 {[%emt 0:00:14]} 22. Qh3 {[%emt 0:01:22]} Nf8 {[%emt 0:02:20]} 23. Bf5 {[%emt 0:03:47]} Rxe1 {[%emt 0:05:08]} 24. Rxe1 {[%emt 0:00:07]} g6 {[%emt 0:00:24]} 25. Bxf8 gxf5 {[%emt 0:01:08]} 26. Bd6 {[%emt 0:09:28]} b6 {[%emt 0:06:37]} 27. Qxf5 {[%emt 0:05:49]} Bg7 {[%emt 0:00:09]} 28. Re7 {[%emt 0:07:00]} bxc5 {[%emt 0:05:10]} 29. dxc5 {[%emt 0:05:09]} Qg8 {[%emt 0:05:03]} 30. Be5 {[%emt 0:03:16]} Rf8 {[%emt 0:01:59]} 31. Qxf8 {[%emt 0:00:15]} Qxf8 {[%emt 0:00:24]} 32. Bxg7+ {[%emt 0:00:04]} Qxg7 {[%emt 0:00:22]} 33. Re8+ {[%emt 0:00:06]} Qg8 {[%emt 0:00:34]} 34. Rxg8+ {[%emt 0:00:04]} Kxg8 {[%emt 0:00:16]} 35. Kf2 {[%emt 0:00:02]} Kf7 {[%emt 0:02:50]} 36. Ke3 {[%emt 0:00:21]} Ke6 {[%emt 0:01:03]} 37. Ke4 {[%emt 0:00:05]} Kf6 {[%emt 0:00:45]} 38. Kf4 {[%emt 0:00:08]} Ke6 {[%emt 0:00:43]} 39. c4 {[%emt 0:00:04]} Kf6 {[%emt 0:00:11]} 40. g4 {[%emt 0:00:04]} a5 {[%emt 0:00:53]} 41. h4 {[%emt 0:30:22]} a4 {[%emt 0:30:09]} 42. a3 {[%emt 0:00:11]} h6 {[%emt 0:02:54]} 43. g5+ {[%emt 0:00:15]} hxg5+ {[%emt 0:00:29]} 44. hxg5+ {[%emt 0:00:05]} Ke6 {[%emt 0:00:46]} 45. Ke4 {[%emt 0:00:06]} 1-0

[Event "WSTCC-65 2024"]
[Site "Krakow"]
[Date "2024.07.02"]
[Round "1.4"]
[White "Kalinin, Alexander"]
[Black "Trabattoni, Franco"]
[Result "1/2-1/2"]
[ECO "A48"]
[WhiteElo "2459"]
[BlackElo "2210"]
[Annotator "TA"]
[PlyCount "53"]
[EventDate "2024.07.01"]
[EventType "team-tourn"]
[EventCountry "POL"]
[SourceTitle "playchess.com"]
[Source "ChessBase"]
[SourceQuality "1"]
[TimeControl "40/5400+30:1800+30"]

{[%evp 12,53,42,23,52,52,58,0,-7,-1,-1,-17,49,0,34,0,79,85,99,52,64,41,84,45,52,49,91,50,129,54,193,68,68,75,65,84,92,9,110,12,22,-5,0,0]} 1. d4 {[%emt 0:04:12]} Nf6 {[%emt 0:00:05]} 2. Nf3 {[%emt 0:00:45]} g6 {[%emt 0:00:20]} 3. c4 {[%emt 0:01:09]} Bg7 {[%emt 0:00:08]} 4. Nc3 {[%emt 0:00:28]} d6 {[%emt 0:00:18]} 5. e4 {[%emt 0:01:15]} O-O {[%emt 0:00:23]} 6. Bd3 {[%emt 0:00:50]} Nbd7 {[%emt 0:04:42]} 7. Bg5 {[%emt 0:06:13]} c5 {[%emt 0:06:02]} 8. d5 {[%emt 0:00:37]} h6 {[%emt 0:02:38]} 9. Bh4 {[%emt 0:04:20]} (9. Bd2 $14) 9... a6 {[%emt 0:03:28]} 10. Qd2 {[%emt 0:02:10]} Rb8 {[%emt 0:03:52][%cal Ob7b5]} 11. a4 {[%emt 0:06:00]} b6 {[%emt 0:09:51]} (11... g5 $11 12. Bg3 Nh5) 12. O-O {[%emt 0:00:50]} (12. h3 $14) 12... Nh5 {[%emt 0:12:40]} 13. Rfe1 {[%emt 0:09:02]} Ne5 {[%emt 0:04:35]} (13... g5 $11 14. Bg3 Nxg3 15. hxg3 Re8) 14. Nxe5 $16 {[%emt 0:05:39]} dxe5 {[%emt 0:00:03]} 15. Be2 {[%emt 0:03:33] White is more active.} (15. f3 $16) 15... Nf4 $14 {[%emt 0:00:36]} 16. f3 {[%emt 0:04:31][%cal Oa4a5]} Qd6 {[%emt 0:00:58]} 17. Bf1 {[%emt 0:00:43]} g5 {[%emt 0:00:38]} 18. Bf2 {[%emt 0:02:33]} Bd7 {[%emt 0:00:09]} 19. Qe3 {[%emt 0:00:54]} Rfc8 {[%emt 0:01:47] [#]} ({Black should play} 19... a5 $1 $14) 20. Ne2 {[%emt 0:03:28]} (20. a5 $1 $16) 20... b5 {[%emt 0:02:04]} (20... Bf8 $14) 21. cxb5 {[%emt 0:00:17]} (21. axb5 $18 axb5 22. b4 cxb4 (22... Nxe2+ $2 23. Bxe2 cxb4 24. c5 $18) 23. c5) 21... axb5 {[%emt 0:00:01]} 22. a5 {[%emt 0:00:34]} Ra8 {[%emt 0:00:04]} 23. Rec1 {[%emt 0:01:07][%cal Rc1c5]} c4 {[%emt 0:02:03] [#]} 24. Ng3 {[%emt 0:02:37]} (24. Nc3 $1 $16) 24... Qb4 {[%emt 0:01:51]} (24... Qa6 $11) 25. Qc3 {[%emt 0:00:52]} (25. Be1 $16 Qd6 (25... Qxb2 $2 {is the wrong capture.} 26. Bc3 $18) 26. b3) 25... Qd6 $11 {[%emt 0:01:04]} 26. Bb6 {[%emt 0:00:53]} e6 {[%emt 0:06:16]} 27. dxe6 {[%emt 0:00:22] Weighted Error Value: White=0.41/Black=0.39.  Mistake:       	White=7     	Black=5      Inaccurate:     	White=4     	Black=3      OK:         	White=6     	Black=3      Best:        	White=1     	Black=2} 1/2-1/2

[Event "WSTCC-65 2024"]
[Site "Krakow"]
[Date "2024.07.02"]
[Round "1.4"]
[White "Jorgensen, Arne Bjorn"]
[Black "Chapman, Terry P D"]
[Result "0-1"]
[ECO "D30"]
[WhiteElo "1940"]
[BlackElo "2287"]
[Annotator "TA"]
[PlyCount "78"]
[EventDate "2024.07.01"]
[EventType "team-tourn"]
[EventCountry "POL"]
[SourceTitle "playchess.com"]
[Source "ChessBase"]
[SourceQuality "1"]
[TimeControl "40/5400+30:1800+30"]

{[%evp 14,78,39,17,26,12,27,14,18,21,14,31,40,4,12,14,31,4,33,-66,-68,-56,-77,-65,-51,-79,-79,-117,-81,-82,-87,-85,-87,-86,-73,-131,-104,-119,-126,-167,-168,-162,-127,-134,-122,-131,-101,-150,-137,-282,-141,-149,-148,-149,-142,-156,-157,-141,-148,-198,-167,-300,-263,-371,-327,-381,-381]} 1. d4 {[%emt 0:00:03]} Nf6 {[%emt 0:00:09]} 2. c4 {[%emt 0:00:07]} e6 {[%emt 0:00:07]} 3. Nf3 {[%emt 0:00:20]} d5 {[%emt 0:00:11]} 4. Bg5 {[%emt 0:00:26]} h6 {[%emt 0:01:39]} 5. Bxf6 {[%emt 0:00:34]} Qxf6 {[%emt 0:00:24]} 6. e3 {[%emt 0:00:21]} Nd7 {[%emt 0:04:38]} 7. Nc3 {[%emt 0:00:21]} c6 {[%emt 0:02:50]} 8. Be2 {[%emt 0:01:13]} Bb4 {[%emt 0:04:49]} 9. Rc1 {[%emt 0:00:59]} O-O {[%emt 0:00:51]} 10. O-O {[%emt 0:00:33]} Qe7 {[%emt 0:16:33] The position is equal.} 11. a3 {[%emt 0:01:58]} Bxc3 {[%emt 0:02:23]} 12. Rxc3 {[%emt 0:00:06]} Rd8 {[%emt 0:08:28]} 13. b4 {[%emt 0:06:22]} dxc4 {[%emt 0:01:17]} 14. Bxc4 {[%emt 0:04:07]} e5 {[%emt 0:00:26]} 15. Qb3 {[%emt 0:06:58]} e4 {[%emt 0:05:17] [#]} 16. Ne5 {[%emt 0:21:33]} Nxe5 $15 {[%emt 0:00:51]} 17. dxe5 {[%emt 0:00:07]} b5 $36 {[%emt 0:08:37][%mdl 2048] Black is on the roll.} 18. Be2 {[%emt 0:01:34]} Be6 {[%emt 0:00:51]} 19. Qc2 {[%emt 0:01:33]} Bd5 {[%emt 0:00:27][%cal Oa7a5]} 20. f4 {[%emt 0:12:50]} exf3 {[%emt 0:00:57]} 21. Bxf3 {[%emt 0:00:13]} Qxe5 {[%emt 0:04:51]} 22. Bxd5 {[%emt 0:09:54]} cxd5 {[%emt 0:01:40]} 23. Rf3 {[%emt 0:04:00]} Qe6 {[%emt 0:11:15]} 24. Qd3 {[%emt 0:08:00]} (24. Rc6 $142 Qe8 25. Qc5) 24... a6 {[%emt 0:02:08]} 25. Rc5 {[%emt 0:04:06]} Rac8 {[%emt 0:01:49]} 26. Rf5 {[%emt 0:05:10][%cal Rf5d5]} Rxc5 {[%emt 0:08:21]} 27. bxc5 {[%emt 0:00:08]} Qe4 {[%emt 0:02:20]} 28. Qxe4 {[%emt 0:02:08]} dxe4 $17 {[%emt 0:00:01][%mdl 4096] Endgame. KR-KR} 29. Re5 {[%emt 0:00:44]} Rc8 {[%emt 0:00:38]} 30. Rxe4 {[%emt 0:02:03]} ({White should try} 30. Kf2) 30... Rxc5 {[%emt 0:00:06] ...Rc1+ would now be deadly.} 31. Re8+ {[%emt 0:00:36] Loses the game.} Kh7 {[%emt 0:00:01] aiming for ...Rc3.} 32. Ra8 {[%emt 0:00:29]} Rc6 {[%emt 0:00:14]} 33. Kf2 {[%emt 0:00:21]} Kg6 {[%emt 0:01:31]} 34. Kf3 {[%emt 0:00:28]} Kf5 {[%emt 0:01:19]} 35. Ra7 {[%emt 0:00:39]} Ke6 {[%emt 0:02:43]} 36. g3 {[%emt 0:00:26]} (36. Ke2 $17) 36... h5 {[%emt 0:01:10]} 37. h4 {[%emt 0:00:46]} (37. Ke2 {is a better defense.}) 37... g6 $19 {[%emt 0:00:31]} 38. Kf4 {[%emt 0:00:31]} (38. Rb7 {was worth a try.}) 38... Rc4+ {[%emt 0:01:12]} 39. Kf3 {[%emt 0:01:14]} Ra4 {[%emt 0:00:12] Weighted Error Value: White=0.31/Black=0.12 (very precise) .  Mistake:       	White=6     	---        Inaccurate:     	White=5     	Black=3      OK:         	White=7     	Black=12     Best:        	White=1     	Black=3} 0-1

[Event "WSTCC-65 2024"]
[Site "Krakow"]
[Date "2024.07.02"]
[Round "1.4"]
[White "Kundt, Guenther"]
[Black "Aragones-Melhem, Georgy"]
[Result "0-1"]
[ECO "D20"]
[WhiteElo "1843"]
[BlackElo "2079"]
[Annotator "NA RC"]
[PlyCount "50"]
[EventDate "2024.07.01"]
[EventType "team-tourn"]
[EventCountry "POL"]
[SourceTitle "playchess.com"]
[Source "ChessBase"]
[SourceQuality "1"]
[TimeControl "40/5400+30:1800+30"]

1. d4 {[%emt 0:00:01]} d5 {[%emt 0:00:11]} 2. c4 {[%emt 0:00:06]} dxc4 {[%emt 0:00:25]} 3. e4 {[%emt 0:00:09]} b5 {[%emt 0:01:28]} 4. a4 {[%emt 0:00:15]} c6 {[%emt 0:00:38]} 5. axb5 {[%emt 0:00:09]} cxb5 {[%emt 0:00:15]} 6. b3 {[%emt 0:01:15]} Bb7 {[%emt 0:02:43]} 7. f3 {[%emt 0:08:09]} e6 {[%emt 0:06:25]} 8. bxc4 {[%emt 0:05:20]} Bxe4 {[%emt 0:01:28]} 9. c5 {[%emt 0:28:36]} Bc6 {[%emt 0:01:34]} 10. Be3 {[%emt 0:02:46]} Nf6 {[%emt 0:03:27]} 11. Bd3 {[%emt 0:03:42]} Nd5 {[%emt 0:00:59]} 12. Bf2 {[%emt 0:01:28]} Nd7 {[%emt 0:03:00]} 13. Ne2 {[%emt 0:01:59]} b4 {[%emt 0:04:45]} 14. Nd2 {[%emt 0:10:27]} a5 {[%emt 0:01:28]} 15. Bc2 {[%emt 0:03:50]} Be7 {[%emt 0:03:08]} 16. O-O {[%emt 0:00:32]} O-O {[%emt 0:00:41]} 17. Ba4 {[%emt 0:01:48]} Nb8 {[%emt 0:03:51]} 18. Nc4 {[%emt 0:03:31]} Bf6 {[%emt 0:05:22]} 19. Bg3 {[%emt 0:02:59]} Nc3 {[%emt 0:00:26]} 20. Nxc3 {[%emt 0:06:09]} Qxd4+ {[%emt 0:01:48]} 21. Qxd4 {[%emt 0:04:28]} Bxd4+ {[%emt 0:00:35]} 22. Kh1 {[%emt 0:01:09]} Bxc3 {[%emt 0:01:44]} 23. Ra2 {[%emt 0:03:12]} Bd5 {[%emt 0:01:51]} 24. Bb5 {[%emt 0:03:44]} Nc6 {[%emt 0:00:27]} 25. Ra4 {[%emt 0:03:35]} Nd4 {[%emt 0:00:47]} 0-1

[Event "WSTCC-65 2024"]
[Site "Krakow"]
[Date "2024.07.02"]
[Round "1.5"]
[White "Rewitz, Jan"]
[Black "Mikhalevski, Alexander"]
[Result "0-1"]
[ECO "D55"]
[WhiteElo "2089"]
[BlackElo "2393"]
[Annotator "RC"]
[PlyCount "36"]
[EventDate "2024.07.01"]
[EventType "team-tourn"]
[EventCountry "POL"]
[SourceTitle "playchess.com"]
[Source "ChessBase"]
[SourceQuality "1"]
[TimeControl "40/5400+30:1800+30"]

1. d4 {[%emt 0:00:04]} d5 {[%emt 0:00:07]} 2. Nf3 {[%emt 0:00:22]} Nf6 {[%emt 0:00:06]} 3. c4 {[%emt 0:00:10]} e6 {[%emt 0:00:03]} 4. Nc3 {[%emt 0:00:44]} Be7 {[%emt 0:00:09]} 5. Bg5 {[%emt 0:04:42]} O-O {[%emt 0:00:09]} 6. e3 {[%emt 0:00:22]} b6 {[%emt 0:00:05]} 7. cxd5 {[%emt 0:08:13]} exd5 {[%emt 0:00:18]} 8. Be2 {[%emt 0:01:45]} Bb7 {[%emt 0:00:26]} 9. O-O {[%emt 0:01:28]} Nbd7 {[%emt 0:00:07]} 10. Rc1 {[%emt 0:02:43]} Ne4 {[%emt 0:00:33]} 11. Bxe7 {[%emt 0:08:21]} Qxe7 {[%emt 0:00:18]} 12. Nxe4 {[%emt 0:02:51]} dxe4 {[%emt 0:00:25]} 13. Nd2 {[%emt 0:00:53]} c5 {[%emt 0:00:16]} 14. Nb3 {[%emt 0:07:54]} Rfd8 {[%emt 0:02:40]} 15. Rc3 {[%emt 0:16:53]} Ne5 {[%emt 0:04:43]} 16. Qc2 {[%emt 0:03:21]} Nf3+ {[%emt 0:06:54]} 17. Kh1 {[%emt 0:15:24]} Qh4 {[%emt 0:03:49]} 18. gxf3 {[%emt 0:06:33]} Rd6 {[%emt 0:03:50]} 0-1

[Event "WSTCC-65 2024"]
[Site "Krakow"]
[Date "2024.07.02"]
[Round "1.5"]
[White "White, Alastair F"]
[Black "Raupp, Thomas"]
[Result "0-1"]
[ECO "D02"]
[WhiteElo "2022"]
[BlackElo "2237"]
[Annotator "RC"]
[PlyCount "62"]
[EventDate "2024.07.01"]
[EventType "team-tourn"]
[EventCountry "POL"]
[SourceTitle "playchess.com"]
[Source "ChessBase"]
[SourceQuality "1"]
[TimeControl "40/5400+30:1800+30"]

1. d4 {[%emt 0:00:39]} d5 {[%emt 0:00:41]} 2. Nf3 {[%emt 0:00:12]} Nf6 {[%emt 0:00:12]} 3. Bf4 {[%emt 0:00:19]} c5 {[%emt 0:00:43]} 4. e3 {[%emt 0:00:33]} Nc6 {[%emt 0:00:47]} 5. c3 {[%emt 0:02:06]} Qb6 {[%emt 0:01:21]} 6. Qb3 {[%emt 0:05:38]} c4 {[%emt 0:01:18]} 7. Qxb6 {[%emt 0:07:11]} axb6 {[%emt 0:00:09]} 8. Nbd2 {[%emt 0:01:14]} b5 {[%emt 0:01:22]} 9. b4 {[%emt 0:04:04]} Bf5 {[%emt 0:04:32]} 10. h3 {[%emt 0:03:11]} e6 {[%emt 0:08:10]} 11. Be2 {[%emt 0:04:40]} Be7 {[%emt 0:19:55]} 12. g4 {[%emt 0:14:47]} Bg6 {[%emt 0:08:05]} 13. Ne5 {[%emt 0:08:36]} Nxe5 {[%emt 0:15:04]} 14. dxe5 {[%emt 0:01:17]} Ne4 {[%emt 0:05:09]} 15. Nxe4 {[%emt 0:00:23]} Bxe4 {[%emt 0:00:06]} 16. Rg1 {[%emt 0:07:23]} Ra3 {[%emt 0:01:11]} 17. f3 {[%emt 0:04:39]} Bg6 {[%emt 0:00:45]} 18. Kd2 {[%emt 0:03:48]} Kd7 {[%emt 0:01:31]} 19. Bd1 {[%emt 0:04:17]} Rha8 {[%emt 0:01:03]} 20. Bc2 {[%emt 0:00:22]} Bxc2 {[%emt 0:02:35]} 21. Kxc2 {[%emt 0:00:31]} Rxa2+ {[%emt 0:00:05]} 22. Rxa2 {[%emt 0:00:06]} Rxa2+ {[%emt 0:00:08]} 23. Kb1 {[%emt 0:00:24]} Rf2 {[%emt 0:00:32]} 24. h4 {[%emt 0:09:27]} Rxf3 {[%emt 0:04:08]} 25. g5 {[%emt 0:01:53]} Bd8 {[%emt 0:09:42]} 26. h5 {[%emt 0:03:30]} Bb6 {[%emt 0:01:48]} 27. g6 {[%emt 0:00:29]} hxg6 {[%emt 0:06:40]} 28. hxg6 {[%emt 0:00:08]} Ke8 {[%emt 0:01:40]} 29. Bh6 {[%emt 0:02:42]} Kf8 {[%emt 0:02:26]} 30. Bf4 {[%emt 0:03:04]} fxg6 {[%emt 0:00:14]} 31. Rxg6 {[%emt 0:00:16]} Kf7 {[%emt 0:00:09]} 0-1

[Event "WSTCC-65 2024"]
[Site "Krakow"]
[Date "2024.07.02"]
[Round "1.5"]
[White "Idesis, Yaacov"]
[Black "Renman, Nils-Gustaf"]
[Result "0-1"]
[ECO "A36"]
[WhiteElo "1879"]
[BlackElo "2314"]
[Annotator "TA"]
[PlyCount "40"]
[EventDate "2024.07.01"]
[EventType "team-tourn"]
[EventCountry "POL"]
[SourceTitle "playchess.com"]
[Source "ChessBase"]
[SourceQuality "1"]
[TimeControl "40/5400+30:1800+30"]

{[%evp 9,40,2,6,4,44,23,25,13,6,18,8,0,4,10,14,-120,-120,-114,-129,-354,-363,-453,-439,-439,-438,-397,-391,-658,-631,-861,-864,-858,-847]} 1. c4 {[%emt 0:00:09]} c5 {[%emt 0:01:34]} 2. Nc3 {[%emt 0:00:14]} Nc6 {[%emt 0:00:15]} 3. g3 {[%emt 0:00:23]} g6 {[%emt 0:00:09]} 4. Bg2 {[%emt 0:00:24]} Bg7 {[%emt 0:00:03]} 5. e3 {[%emt 0:00:27]} e5 {[%emt 0:00:34]} 6. Nge2 {[%emt 0:00:11][%cal Od2d4]} a6 {[%emt 0:04:31]} 7. O-O {[%emt 0:00:32][%cal Od2d4]} Nge7 {[%emt 0:00:47]} 8. a3 {[%emt 0:00:29] White has an edge.} O-O {[%emt 0:08:08]} 9. Rb1 {[%emt 0:03:43]} b5 {[%emt 0:03:03]} 10. cxb5 {[%emt 0:02:49]} axb5 {[%emt 0:00:08]} 11. Nxb5 {[%emt 0:00:38]} Ba6 {[%emt 0:00:16]} 12. Nd6 {[%emt 0:04:06]} (12. a4 $11 {remains equal.}) 12... Bd3 $17 {[%emt 0:02:24]} 13. Ra1 {[%emt 0:00:33]} Qb6 {[%emt 0:03:39] White must now prevent ...Nb4.} 14. Re1 $2 {[%emt 0:06:56] [#] White does not recover from this.} (14. Nc3 $17) 14... Nb4 $1 $19 {[%emt 0:07:46]} 15. Bxa8 {[%emt 0:11:41]} Rxa8 {[%emt 0:05:54]} 16. axb4 {[%emt 0:04:23]} Rxa1 {[%emt 0:00:10]} 17. bxc5 {[%emt 0:02:53]} Qxc5 {[%emt 0:01:47] White is weak on the light squares} 18. Ne4 {[%emt 0:07:12] [#]} (18. Ne8 Bxe2 19. Qxe2 Rxc1 20. Rf1) 18... Bxe4 {[%emt 0:01:09] Black is clearly winning.} 19. d3 {[%emt 0:00:50]} Bf3 {[%emt 0:00:58]} 20. d4 {[%emt 0:00:56]} Qc6 {[%emt 0:03:39] Weighted Error Value: White=0.90/Black=0.03 (flawless) .  Loses game:     	White=1     	---        Mistake:       	White=2     	---        Inaccurate:     	White=1     	Black=1      OK:         	White=3     	Black=7      Best:        	White=1     	Black=1      Strong:       	---       	Black=1} 0-1